bitfinex/quotes_ETHUSD_20241216
["timestamp","ask_amount","ask_price","bid_price","bid_amount"]
[1734380705985,0.103,4051.0,4049.9,3.36127888]
[1734380708599,0.103,4051.0,4050.1,2.73420709]
[1734380713322,0.103,4051.0,4049.7,8.7299964]
[1734380713528,2.46835,4051.3,4049.3,4.25152569]
[1734380713529,0.103,4050.8,4049.4,1.01154573]
[1734380713712,0.103,4050.6,4049.3,2.73420709]
[1734380714049,0.103,4050.4,4049.2,8.7299964]
[1734380714212,0.18366184,4050.3,4049.1,0.1677536]
[1734380714413,0.18359944,4050.2,4049.1,0.1677536]
[1734380714733,0.103,4050.0,4049.1,0.1677536]
[1734380716029,0.22949169,4049.9,4049.1,0.1677536]
[1734380716230,0.103,4050.0,4049.3,2.73420709]
[1734380716231,0.22949169,4049.8,4049.3,2.73420709]
[1734380716432,0.103,4050.3,4049.7,2.73420709]
[1734380716742,0.103,4050.3,4049.8,0.27342071]
[1734380716927,0.103,4050.6,4049.8,0.27342071]
[1734380718122,0.103,4050.6,4049.7,2.73420709]
[1734380718388,0.22968001,4050.5,4049.5,8.7299964]
[1734380718670,0.22968001,4050.4,4049.5,8.7299964]
[1734380718968,0.33268001,4050.3,4049.5,8.7299964]
[1734380719187,0.22968001,4050.2,4049.5,8.7299964]
[1734380719482,0.78067667,4050.1,4049.1,0.1677536]
[1734380719621,0.12505577,4050.7,4049.1,0.1677536]
[1734380719622,0.88392104,4050.0,4049.1,0.1677536]
[1734380719819,0.12505577,4050.7,4049.3,2.73420709]
[1734380719820,0.22968001,4049.9,4049.3,2.73420709]
[1734380720024,0.36748231,4050.6,4049.8,2.73420709]
[1734380720290,0.22969503,4050.5,4049.8,2.73420709]
[1734380720433,0.12505577,4050.7,4049.8,2.73420709]
[1734380721456,0.12505577,4050.7,4049.4,3.10600316]
[1734380721457,0.103,4050.6,4049.4,3.10600316]
[1734380721655,0.33279197,4050.6,4049.4,3.10600316]
[1734380723124,0.33279197,4050.6,4049.5,0.39220032]
[1734380723324,0.33279197,4050.6,4049.4,3.10600316]
[1734380723549,0.103,4050.6,4049.4,3.10600316]
[1734380723961,0.103,4050.6,4049.3,8.7299964]
[1734380724964,2.46891,4050.4,4049.3,8.7299964]
[1734380725162,0.103,4050.0,4049.1,0.1677536]
[1734380725388,0.103,4049.8,4049.1,0.1677536]
[1734380725565,0.103,4049.6,4049.1,0.1677536]
[1734380725763,0.41324818,4049.5,4049.1,0.1677536]
[1734380725969,0.22959731,4049.4,4049.1,0.1677536]
[1734380726175,0.103,4049.6,4049.1,0.1677536]
[1734380726359,0.41285333,4049.5,4049.1,0.1677536]
[1734380726712,0.103,4049.6,4049.1,0.1677536]
[1734380726897,0.22936502,4049.5,4049.1,0.1677536]
[1734380727217,0.103,4049.6,4049.1,0.1677536]
[1734380727415,0.2293073,4049.5,4049.1,0.1677536]
[1734380727711,0.103,4049.6,4049.1,0.1677536]
[1734380727872,0.22932837,4049.5,4049.1,0.1677536]
[1734380728195,0.103,4049.6,4049.1,0.1677536]
[1734380728392,0.22937741,4049.5,4049.1,0.1677536]
[1734380728553,0.103,4050.4,4049.3,2.73420709]
[1734380728759,0.41276857,4050.3,4049.3,2.73420709]
[1734380729094,0.41276857,4050.2,4049.3,2.73420709]
[1734380729293,0.22931553,4050.1,4049.3,2.73420709]
[1734380729490,0.103,4050.4,4049.3,2.73420709]
[1734380729673,0.41299255,4050.3,4049.3,2.73420709]
[1734380730000,0.41299255,4050.2,4049.3,2.73420709]
[1734380730293,0.22943139,4050.1,4049.3,2.73420709]
[1734380730461,0.103,4050.4,4049.3,2.73420709]
[1734380730660,0.41309523,4050.3,4049.3,2.73420709]
[1734380730863,0.41309523,4050.2,4049.1,0.1677536]
[1734380731066,0.103,4050.4,4049.1,0.1677536]
[1734380731067,0.41309523,4050.1,4049.1,0.1677536]
[1734380731257,0.103,4050.4,4049.1,0.1677536]
[1734380731467,0.41306865,4050.3,4049.1,0.1677536]
[1734380731665,0.41306865,4050.2,4049.1,0.1677536]
[1734380731889,0.1235396,4049.8,4049.1,0.1677536]
[1734380736179,0.1235396,4049.8,4049.1,1.33094931]
[1734380737138,0.103,4049.7,4049.1,0.1677536]
[1734380738806,3.99715415,4051.6,4049.1,0.1677536]
[1734380738807,0.103,4050.4,4049.1,0.9650536]
[1734380738974,0.41364351,4050.3,4049.1,0.9650536]
[1734380739169,0.64345285,4050.2,4049.1,0.9650536]
[1734380739481,0.41368493,4050.1,4049.1,0.9650536]
[1734380739695,0.103,4050.4,4049.1,0.9650536]
[1734380739696,0.22979585,4050.0,4049.1,0.9650536]
[1734380739928,0.103,4050.4,4049.7,2.73420709]
[1734380740100,0.73497118,4050.8,4049.8,0.7973]
[1734380740101,0.103,4050.8,4049.8,0.7973]
[1734380740725,0.22998582,4050.7,4049.8,0.7973]
[1734380740889,0.103,4050.8,4049.8,0.7973]
[1734380741625,0.23009565,4050.7,4049.8,0.7973]
[1734380741802,0.103,4050.8,4049.8,0.7973]
[1734380742006,0.23005754,4050.7,4049.8,0.7973]
[1734380742203,0.103,4050.8,4049.8,0.7973]
[1734380742404,0.41413979,4050.7,4049.8,0.7973]
[1734380742609,0.103,4050.8,4049.8,0.7973]
[1734380742809,0.41420233,4050.7,4049.8,0.7973]
[1734380743018,0.103,4050.8,4049.8,1.25160528]
[1734380743346,0.12617743,4051.8,4050.6,2.73420709]
[1734380743347,0.36819033,4051.4,4050.6,2.73420709]
[1734380743527,0.64463325,4051.3,4051.0,2.73420709]
[1734380743694,0.23022616,4051.2,4051.0,2.73420709]
[1734380743895,0.103,4051.8,4051.0,2.73420709]
[1734380744093,0.64437989,4051.7,4051.0,2.73420709]
[1734380744292,0.23013546,4051.6,4051.0,2.73420709]
[1734380744494,0.103,4051.8,4051.0,2.73420709]
[1734380744690,0.18401656,4051.7,4051.0,2.73420709]
[1734380744906,0.2300207,4051.6,4051.0,2.73420709]
[1734380745126,0.103,4051.8,4051.0,2.73420709]
[1734380745303,0.41386626,4051.7,4051.0,2.73420709]
[1734380745509,0.103,4051.8,4051.0,2.73420709]
[1734380745704,0.41383415,4051.7,4051.0,2.73420709]
[1734380745905,0.103,4051.8,4051.0,2.73420709]
[1734380746232,0.41385725,4051.7,4051.0,2.73420709]
[1734380746533,0.103,4051.8,4051.0,2.73420709]
[1734380747316,0.103,4051.8,4051.0,3.0906178]
[1734380750264,3.0,4052.6,4051.0,3.0906178]
[1734380750265,0.103,4052.3,4051.7,2.73420709]
[1734380750861,0.103,4052.3,4051.0,10.09795284]
[1734380750862,0.103,4052.3,4051.3,2.73420709]
[1734380751464,0.103,4052.3,4051.0,9.08640711]
[1734380751621,0.18362533,4052.2,4051.0,8.7299964]
[1734380751814,0.41315699,4052.2,4051.0,8.7299964]
[1734380752020,0.41315699,4052.1,4051.0,8.7299964]
[1734380752262,0.103,4052.3,4051.0,8.7299964]
[1734380752461,0.41313622,4052.2,4051.0,8.7299964]
[1734380752662,0.41313622,4052.1,4051.0,8.7299964]
[1734380752866,0.103,4052.3,4051.0,8.7299964]
[1734380753019,0.41313521,4052.2,4051.0,8.7299964]
[1734380753220,0.12522336,4051.9,4051.3,2.73420709]
[1734380753747,0.103,4052.3,4051.3,2.73420709]
[1734380754273,0.103,4053.1,4051.7,2.73420709]
[1734380754704,0.64242512,4053.0,4051.7,2.73420709]
[1734380754908,0.64242512,4052.9,4052.1,2.73420709]
[1734380755113,0.103,4053.1,4052.1,3.55090709]
[1734380755405,0.41284571,4053.0,4052.1,2.73420709]
[1734380755709,0.103,4053.1,4052.1,2.73420709]
[1734380755872,0.41287007,4053.0,4052.1,2.73420709]
[1734380756051,0.103,4053.1,4052.1,2.73420709]
[1734380756052,0.41287007,4052.9,4052.1,2.73420709]
[1734380756255,0.103,4053.1,4052.1,2.73420709]
[1734380756455,0.41284573,4053.0,4052.1,2.73420709]
[1734380756688,0.12391702,4052.9,4052.1,2.73420709]
[1734380756873,0.12391702,4052.9,4052.1,3.0892978]
[1734380759511,0.12391702,4052.9,4052.2,0.02467405]
[1734380759687,0.12391702,4052.9,4052.1,3.0892978]
[1734380760259,0.12391702,4052.9,4052.1,2.73420709]
[1734380762599,0.12391702,4052.9,4052.0,0.8167]
[1734380763023,0.103,4053.9,4052.3,2.73420709]
[1734380763309,0.64184974,4053.8,4052.2,8.7299964]
[1734380763460,0.41264606,4053.7,4052.3,0.98382591]
[1734380763660,0.1834161,4053.6,4052.3,0.98382591]
[1734380763861,0.41269802,4053.6,4052.3,0.98382591]
[1734380764088,0.103,4053.9,4052.3,0.98382591]
[1734380764298,0.64201515,4053.8,4052.3,0.98382591]
[1734380764507,0.55325825,4053.7,4052.3,0.98382591]
[1734380764717,0.103,4053.9,4052.3,0.98382591]
[1734380764859,0.12208913,4053.1,4052.3,0.98382591]
[1734380765715,0.103,4053.0,4052.3,0.98382591]
[1734380766018,0.103,4053.0,4052.1,9.02155912]
[1734380766019,0.103,4053.0,4052.1,8.7299964]
[1734380768505,0.12208913,4053.1,4052.1,8.7299964]
[1734380768506,0.45933731,4052.9,4052.1,8.7299964]
[1734380768767,0.45933731,4052.8,4051.5,3.50790709]
[1734380768991,0.45933731,4052.7,4051.5,3.50790709]
[1734380769187,0.56233731,4052.6,4051.3,8.7299964]
[1734380769464,0.103,4052.6,4051.3,10.01641136]
[1734380769686,0.103,4052.6,4051.3,10.33849479]
[1734380770196,0.103,4052.6,4051.3,10.63005751]
[1734380770393,0.103,4052.6,4051.5,2.73420709]
[1734380770596,0.103,4052.6,4051.5,0.32208343]
[1734380770780,0.45982701,4052.5,4051.3,8.7299964]
[1734380770990,0.56287208,4052.4,4051.3,8.7299964]
[1734380771192,0.45987208,4052.3,4050.8,3.52050709]
[1734380771391,0.45987208,4052.2,4050.8,3.52050709]
[1734380771735,0.45987208,4052.1,4050.9,0.96569686]
[1734380772025,0.103,4052.4,4050.9,0.96569686]
[1734380772234,0.46007598,4052.3,4050.9,0.96569686]
[1734380772527,0.46007598,4052.2,4050.9,0.96569686]
[1734380772732,0.23003804,4052.1,4050.9,0.96569686]
[1734380772878,0.39731666,4052.4,4050.9,0.96569686]
[1734380773084,0.4602535,4052.3,4050.9,0.96569686]
[1734380773451,0.23014076,4052.2,4050.9,0.96569686]
[1734380773610,0.29431666,4052.3,4051.2,2.73420709]
[1734380773787,0.46031525,4052.2,4051.7,0.7731]
[1734380773985,0.103,4052.4,4051.7,0.7731]
[1734380774536,0.103,4052.4,4051.6,2.73420709]
[1734380774703,0.23019047,4052.3,4051.6,2.73420709]
[1734380775026,0.103,4052.4,4051.6,2.73420709]
[1734380775233,0.103,4052.4,4051.6,4.01930205]
[1734380776432,0.103,4052.7,4051.6,4.6329482]
[1734380776798,0.23025441,4052.6,4051.6,4.34138548]
[1734380777014,0.46050246,4052.6,4051.6,4.34138548]
[1734380777231,0.23025123,4052.5,4051.6,4.34138548]
[1734380777416,0.103,4052.7,4051.7,0.54795152]
[1734380777636,0.46058416,4052.6,4051.7,0.54795152]
[1734380777898,0.23029213,4052.5,4051.7,9.27794792]
[1734380778107,0.103,4052.7,4051.7,9.27794792]
[1734380778301,0.23027677,4052.6,4051.7,9.27794792]
[1734380778500,0.103,4052.7,4051.8,1.23342384]
[1734380778731,0.23032633,4052.6,4051.8,1.23342384]
[1734380778946,0.103,4052.7,4051.8,1.23342384]
[1734380779085,0.46065326,4052.6,4051.8,1.23342384]
[1734380779290,0.23032663,4052.5,4051.8,1.23342384]
[1734380779544,0.103,4053.3,4051.8,1.23342384]
[1734380779690,1.12416855,4053.2,4051.8,1.23342384]
[1734380779892,0.103,4053.3,4051.8,1.23342384]
[1734380779893,1.12416815,4053.1,4051.8,1.23342384]
[1734380780086,1.12416815,4053.0,4051.8,1.55550727]
[1734380780355,0.46075504,4052.9,4052.4,2.73420709]
[1734380780643,0.46075504,4052.9,4052.2,8.7299964]
[1734380780644,0.66342861,4053.2,4052.2,8.7299964]
[1734380780788,0.46071222,4053.1,4052.2,8.7299964]
[1734380780990,0.46071222,4053.0,4052.2,8.7299964]
[1734380781194,0.2303561,4052.9,4052.3,0.59962264]
[1734380781446,0.6633875,4053.2,4052.3,0.59962264]
[1734380781649,0.46068632,4053.1,4052.4,9.05207983]
[1734380781808,0.103,4053.3,4052.4,9.05207983]
[1734380782020,0.46067536,4053.2,4052.5,0.99432652]
[1734380782195,0.2303434,4053.1,4052.5,0.99432652]
[1734380782397,0.103,4053.3,4052.5,0.99432652]
[1734380782689,0.4606864,4053.2,4052.5,0.99432652]
[1734380782894,0.103,4053.3,4052.6,1.45236611]
[1734380783140,0.103,4053.7,4052.8,2.73420709]
[1734380783289,0.23029225,4053.6,4052.8,2.73420709]
[1734380783494,0.46058407,4053.5,4052.8,2.73420709]
[1734380783752,0.103,4053.7,4052.9,0.7965]
[1734380783911,5.03437193,4055.6,4052.9,0.7965]
[1734380783912,0.76623487,4054.4,4053.2,2.73420709]
[1734380784099,1.12379585,4054.3,4053.2,2.73420709]
[1734380784421,0.103,4054.4,4053.2,2.73420709]
[1734380784422,0.75532825,4054.2,4053.2,2.73420709]
[1734380784627,0.46056098,4054.1,4053.3,0.31486424]
[1734380784809,0.103,4054.4,4053.3,0.31486424]
[1734380785018,0.75496166,4054.3,4053.4,0.61364615]
[1734380785529,0.75496166,4054.3,4053.4,0.63831157]
[1734380785849,0.46034238,4054.3,4053.6,2.73420709]
[1734380786056,0.103,4054.4,4053.6,3.02576981]
[1734380786199,0.103,4055.0,4053.6,3.02576981]
[1734380786598,0.103,4055.0,4053.6,11.75576621]
[1734380786800,0.103,4055.0,4053.6,12.07784964]
[1734380787042,0.103,4055.0,4053.7,0.32208343]
[1734380787258,0.103,4055.0,4054.0,2.73420709]
[1734380787759,0.103,4055.0,4054.1,8.7299964]
[1734380787897,0.103,4055.0,4054.2,0.81976057]
[1734380788097,0.45989252,4054.9,4054.2,0.81976057]
[1734380788308,0.45989252,4054.9,4054.2,1.20953532]
[1734380789039,0.103,4055.0,4054.3,8.7299964]
[1734380792111,0.103,4055.0,4053.5,9.5118964]
[1734380792325,0.103,4054.9,4053.5,8.7299964]
[1734380792520,0.103,4054.7,4053.5,8.7299964]
[1734380792956,0.103,4054.7,4053.1,0.7819]
[1734380793824,0.103,4054.7,4053.1,1.10398343]
[1734380794073,0.103,4054.7,4053.2,0.32208343]
[1734380794873,0.103,4054.7,4053.1,0.7819]
[1734380795381,0.103,4054.7,4053.2,3.3725205]
[1734380795680,0.103,4054.7,4053.2,3.34785324]
[1734380795880,0.103,4054.7,4053.2,12.07784964]
[1734380796107,0.22982665,4054.6,4053.2,12.07784964]
[1734380796255,0.22982665,4054.6,4053.6,2.73420709]
[1734380796442,0.103,4054.7,4053.7,0.91173173]
[1734380796641,0.103,4054.7,4053.8,0.8164]
[1734380796841,0.103,4054.7,4053.8,1.43004615]
[1734380797087,0.103,4055.5,4053.8,1.10796272]
[1734380797286,0.22945066,4055.4,4053.9,0.63830833]
[1734380798290,0.103,4055.3,4053.9,0.32208343]
[1734380799090,0.103,4055.3,4054.0,0.02466195]
[1734380799290,0.103,4055.3,4054.0,0.61364615]
[1734380799590,0.103,4055.3,4054.1,0.32208343]
[1734380799950,0.103,4056.2,4054.4,2.73420709]
[1734380800108,0.22913852,4056.1,4054.5,8.7299964]
[1734380800261,0.103,4056.2,4054.8,9.5352964]
[1734380800462,0.103,4056.2,4054.9,1.27807863]
[1734380803465,0.103,4056.2,4054.9,0.9559952]
[1734380804711,0.103,4055.8,4054.8,9.5352964]
[1734380804922,0.103,4055.8,4054.5,8.7299964]
[1734380806469,0.103,4055.8,4054.6,0.32208343]
[1734380807110,0.103,4055.8,4054.9,0.8121]
[1734380807294,0.103,4056.2,4055.0,0.34673731]
[1734380807479,0.103,4056.2,4055.0,1.05039591]
[1734380807880,0.103,4056.2,4055.1,8.7299964]
[1734380808082,0.103,4056.2,4055.2,0.02465266]
[1734380809015,0.103,4056.2,4055.1,8.7299964]
[1734380809223,0.103,4056.2,4055.2,0.94641763]
[1734380810909,0.103,4056.2,4055.3,8.7299964]
[1734380813033,0.27342071,4057.0,4055.2,0.94641763]
[1734380813034,0.103,4056.7,4055.7,0.8026]
[1734380813234,0.2440685,4057.6,4055.7,0.8026]
[1734380813235,0.1220578,4057.3,4056.0,2.73420709]
[1734380813436,0.4590979,4057.2,4056.1,0.32208343]
[1734380813643,0.4590979,4057.1,4056.2,0.47453242]
[1734380813932,0.22954895,4057.0,4056.2,0.47453242]
[1734380814090,0.48935095,4057.3,4056.2,0.47453242]
[1734380814290,0.45911024,4057.2,4056.3,0.8309]
[1734380814496,0.1220578,4057.3,4056.4,0.02464667]
[1734380814690,0.1220578,4057.3,4056.4,0.32208343]
[1734380814987,0.103,4057.6,4056.5,0.02464559]
[1734380815187,0.103,4057.6,4056.4,0.32208343]
[1734380815188,0.22940143,4057.5,4056.4,3.08093601]
[1734380815441,0.22940143,4057.5,4056.5,8.7299964]
[1734380815734,0.22940143,4057.5,4056.6,0.94641763]
[1734380816241,0.22940143,4057.5,4056.8,8.7299964]
[1734380817328,0.22940143,4057.5,4056.8,9.05207983]
[1734380817530,0.22940143,4057.5,4056.6,1.23798035]
[1734380817531,0.22940143,4057.5,4057.4,8.7299964]
[1734380817840,0.22940143,4057.5,4057.4,9.05207983]
[1734380818146,0.22940143,4057.5,4057.4,10.31831225]
[1734380818723,0.22940143,4057.5,4057.4,8.7299964]
[1734380819107,0.24468602,4059.1,4057.4,8.7299964]
[1734380819108,0.103,4059.2,4057.5,3.0]
[1734380819340,0.103,4059.6,4058.7,3.52590709]
[1734380819523,0.22727885,4059.6,4058.8,0.40037522]
[1734380819740,0.103,4059.6,4058.8,0.77054198]
[1734380821955,0.103,4059.6,4058.9,0.41787522]
[1734380822610,0.2241285,4059.9,4058.9,0.41787522]
[1734380822815,0.2241285,4059.9,4058.9,0.78804198]
[1734380824056,0.2241285,4059.9,4059.0,0.37016676]
[1734380824273,0.2241285,4059.9,4059.1,0.41787522]
[1734380824433,0.103,4059.9,4059.2,0.02463134]
[1734380824747,0.103,4059.9,4059.3,0.41787522]
[1734380825153,0.103,4059.9,4059.2,0.41787522]
[1734380825473,0.36466719,4060.8,4059.3,0.02463018]
[1734380825756,3.35124846,4061.3,4059.3,0.02463018]
[1734380825757,0.103,4060.7,4059.4,0.41787522]
[1734380825913,0.103,4060.7,4059.5,0.02463012]
[1734380826273,0.103,4060.7,4059.2,0.37016676]
[1734380826274,0.103,4060.7,4059.6,0.41787522]
[1734380826991,0.103,4060.7,4059.0,8.7299964]
[1734380826992,0.103,4060.0,4059.0,8.7299964]
[1734380827283,0.103,4060.0,4057.8,0.755]
[1734380827284,0.103,4059.8,4057.8,0.755]
[1734380827595,0.256601,4059.9,4057.8,0.755]
[1734380827596,0.103,4059.7,4057.9,0.78804198]
[1734380828127,0.22782006,4059.6,4057.9,0.78804198]
[1734380828572,0.103,4059.4,4057.9,0.78804198]
[1734380828808,3.71565546,4060.3,4057.9,0.78804198]
[1734380828809,0.103,4059.2,4057.9,0.41787522]
[1734380829080,0.103,4059.0,4057.8,8.7299964]
[1734380829496,0.103,4059.0,4057.9,0.39109189]
[1734380829640,0.103,4059.0,4057.9,9.12108829]
[1734380830489,0.103,4059.0,4058.0,0.02463944]
[1734380830689,0.103,4059.0,4058.0,0.37016676]
[1734380830845,0.103,4059.0,4058.0,0.76125865]
[1734380831245,0.103,4059.0,4057.9,8.7299964]
[1734380831448,0.43903883,4058.9,4057.9,8.7299964]
[1734380831645,0.256654,4058.9,4057.9,8.7299964]
[1734380832683,0.103,4058.8,4057.5,0.39109189]
[1734380833161,0.103,4058.8,4057.5,0.76125865]
[1734380833567,0.103,4058.8,4057.6,0.37016676]
[1734380833798,0.103,4058.8,4057.7,0.39109189]
[1734380834158,0.103,4058.8,4057.7,0.76125865]
[1734380834461,0.103,4058.8,4058.0,3.35124846]
[1734380834697,0.103,4058.8,4058.1,0.39109189]
[1734380835027,0.103,4059.2,4058.2,0.7814]
[1734380835303,0.103,4059.2,4058.2,1.17249189]
[1734380836379,0.103,4059.2,4058.3,0.39109189]
[1734380836614,0.103,4059.2,4058.3,9.85609127]
[1734380837564,0.103,4059.2,4058.3,10.22625803]
[1734380837817,0.103,4060.0,4058.4,8.7299964]
[1734380837980,0.41121896,4059.9,4058.5,0.39109189]
[1734380838179,0.41121896,4059.8,4058.5,0.39109189]
[1734380838514,0.103,4059.6,4058.4,8.7299964]
[1734380838716,0.41121896,4059.7,4058.4,8.7299964]
[1734380838717,0.103,4059.4,4058.4,8.7299964]
[1734380839013,0.41121896,4059.3,4058.4,8.7299964]
[1734380839212,0.41121896,4059.2,4057.9,8.7299964]
[1734380839414,0.1827623,4059.1,4058.0,0.39109189]
[1734380839625,0.103,4059.0,4057.9,9.10016316]
[1734380839791,0.103,4059.0,4058.0,0.76125865]
[1734380839978,0.103,4059.0,4058.0,0.39109189]
[1734380840515,0.41196571,4058.9,4058.0,0.39109189]
[1734380840724,0.103,4059.0,4058.0,0.39109189]
[1734380840927,0.18309217,4058.9,4058.1,0.02463892]
[1734380841110,0.103,4059.0,4058.1,0.37016676]
[1734380841353,4.5215734,4061.7,4058.3,0.83]
[1734380841354,0.41230445,4058.9,4058.3,0.83]
[1734380841624,3.35124846,4060.9,4058.3,0.83]
[1734380841625,0.103,4059.9,4058.5,3.35124846]
[1734380841793,1.00745494,4059.8,4058.6,3.78588994]
[1734380842001,0.103,4059.9,4059.0,3.35124846]
[1734380842213,3.47929584,4061.8,4059.3,8.7299964]
[1734380842214,0.46919174,4061.1,4059.3,8.7299964]
[1734380842380,1.0078809,4061.0,4059.4,0.78588677]
[1734380842580,1.1108809,4060.9,4059.4,0.78588677]
[1734380842791,1.1108809,4060.9,4059.5,0.83]
[1734380842792,1.0078809,4060.8,4059.5,0.83]
[1734380842994,0.103,4060.9,4059.5,0.83]
[1734380842995,1.0078809,4060.7,4059.6,0.39479488]
[1734380843202,0.41251483,4060.6,4059.6,0.39479488]
[1734380843380,0.41251483,4060.5,4059.6,0.39479488]
[1734380843725,0.41265216,4060.4,4059.6,0.39479488]
[1734380843938,0.22925058,4060.4,4059.6,0.39479488]
[1734380844078,0.41264285,4060.3,4059.6,0.37016676]
[1734380844284,0.28639682,4060.2,4059.6,0.37016676]
[1734380844479,0.18346436,4060.1,4059.6,0.37016676]
[1734380844722,0.103,4060.2,4059.6,0.37016676]
[1734380844918,0.1834666,4060.1,4059.6,0.37016676]
[1734380845141,0.103,4060.2,4059.4,8.7299964]
[1734380845347,3.35124846,4061.3,4059.4,8.7299964]
[1734380845348,0.103,4060.0,4059.4,8.7299964]
[1734380845507,0.41291094,4059.9,4059.4,8.7299964]
[1734380845707,0.1835116,4059.8,4059.4,8.7299964]
[1734380845908,0.103,4060.0,4059.4,8.7299964]
[1734380845909,0.1835116,4059.7,4059.4,8.7299964]
[1734380846129,0.103,4060.0,4059.4,8.7299964]
[1734380846130,0.1835116,4059.6,4059.4,8.7299964]
[1734380846330,0.103,4060.0,4059.4,8.7299964]
[1734380846531,0.64257404,4059.9,4059.4,8.7299964]
[1734380846741,0.41308331,4059.8,4059.4,8.7299964]
[1734380846953,0.103,4060.0,4059.4,8.7299964]
[1734380847246,0.103,4059.6,4059.4,8.7299964]
[1734380847447,0.18359254,4059.5,4059.4,8.7299964]
[1734380848105,0.103,4059.4,4058.0,0.39109189]
[1734380848305,0.103,4059.2,4058.0,0.39109189]
[1734380848547,0.64281403,4059.1,4058.0,0.76125865]
[1734380848731,0.64281403,4059.0,4058.0,0.76125865]
[1734380848931,0.64281403,4058.9,4058.0,0.76125865]
[1734380849105,0.41316542,4058.8,4058.0,0.76125865]
[1734380849312,0.18359254,4058.7,4058.1,0.37016676]
[1734380849508,0.103,4059.2,4058.2,0.39109189]
[1734380849717,0.64311275,4059.1,4058.3,0.37016676]
[1734380849918,0.41342936,4059.0,4058.3,0.76125865]
[1734380850145,0.18374671,4058.9,4058.3,0.76125865]
[1734380850349,0.18374671,4058.8,4058.3,0.76125865]
[1734380850650,0.103,4059.2,4058.4,0.39109189]
[1734380850857,0.64314224,4059.1,4058.5,0.37016676]
[1734380851025,0.1837561,4059.0,4058.5,0.78589578]
[1734380851359,0.18376148,4058.9,4058.5,0.76125865]
[1734380851517,0.103,4059.2,4058.5,0.76125865]
[1734380851845,0.41344537,4059.1,4058.5,0.76125865]
[1734380852050,0.1837535,4059.0,4058.5,0.76125865]
[1734380852252,0.1837535,4058.9,4058.5,0.76125865]
[1734380852456,0.1837535,4058.8,4058.1,0.7777]
[1734380852658,0.1837535,4058.7,4058.1,0.37016676]
[1734380852861,0.29401905,4059.1,4058.1,0.37016676]
[1734380853025,0.93718573,4059.0,4058.1,0.37016676]
[1734380853227,0.41346433,4058.9,4058.1,0.37016676]
[1734380853427,0.18376198,4058.8,4058.1,0.37016676]
[1734380853628,0.18376198,4058.7,4058.1,0.37016676]
[1734380853881,0.22503791,4059.2,4058.1,0.37016676]
[1734380854179,0.22503791,4059.2,4058.1,0.76010865]
[1734380854470,0.93722128,4059.1,4058.1,0.76010865]
[1734380854768,0.41347997,4059.0,4058.2,0.76010865]
[1734380855059,0.1837689,4058.9,4058.2,0.76010865]
[1734380855270,0.1837689,4058.8,4058.2,0.76010865]
[1734380855453,0.103,4058.7,4057.9,8.7299964]
[1734380855640,0.103,4058.7,4058.0,0.37016676]
[1734380856564,0.103,4058.7,4058.1,0.38994189]
[1734380857067,0.103,4058.7,4058.1,0.76010865]
[1734380857255,0.103,4058.7,4058.2,0.37016676]
[1734380857566,0.103,4058.7,4058.2,0.76010865]
[1734380858985,0.103,4059.0,4058.3,0.38994189]
[1734380859142,0.12203791,4059.2,4058.4,1.16616676]
[1734380859346,0.4136157,4059.1,4058.4,1.16616676]
[1734380859669,0.18382941,4059.0,4058.4,1.16616676]
[1734380859873,0.18382941,4058.9,4058.4,1.16616676]
[1734380860071,0.12203791,4059.2,4058.3,0.38994189]
[1734380860298,0.41364941,4059.1,4058.1,0.7842]
[1734380860507,0.18384418,4059.0,4058.1,1.17414189]
[1734380860797,0.12203791,4059.2,4058.1,1.17414189]
[1734380860798,0.18384418,4058.9,4058.2,0.38994189]
[1734380861008,0.12203791,4059.2,4058.2,0.38994189]
[1734380861009,0.12203791,4059.2,4058.2,1.78753915]
[1734380861166,0.41365688,4059.1,4058.3,0.02463506]
[1734380861366,0.103,4059.4,4058.4,0.76010865]
[1734380861585,0.18383797,4059.3,4058.4,0.76010865]
[1734380861793,0.103,4059.4,4058.4,0.76010865]
[1734380861962,0.18383613,4059.3,4058.5,0.8253]
[1734380862174,0.29413814,4059.6,4058.6,0.76010865]
[1734380862482,0.64349023,4059.5,4058.6,3.48368805]
[1734380862834,0.103,4059.7,4058.7,1.17713266]
[1734380862963,0.103,4059.7,4058.8,0.76010865]
[1734380863162,0.103,4059.7,4058.8,2.96659393]
[1734380863399,0.103,4059.7,4058.9,1.17713266]
[1734380863721,1.54462005,4060.9,4059.1,0.8253]
[1734380863722,0.103,4060.5,4059.1,0.8253]
[1734380863897,0.103,4060.5,4059.2,0.78473855]
[1734380864060,0.7077677,4060.4,4059.3,1.17669961]
[1734380864257,0.103,4060.5,4059.4,0.76010865]
[1734380864258,0.64342547,4060.3,4059.4,0.76010865]
[1734380864485,0.18383593,4060.2,4059.4,0.76010865]
[1734380864702,0.18383593,4060.1,4059.5,0.02462989]
[1734380864868,0.29412659,4060.4,4059.6,0.38994189]
[1734380865065,0.103,4060.5,4059.7,0.02462988]
[1734380865066,0.41361517,4060.3,4059.7,0.02462988]
[1734380865399,0.103,4060.5,4059.8,0.76010865]
[1734380865606,0.103,4060.5,4059.9,0.02462719]
[1734380865773,0.103,4060.5,4060.0,0.37016676]
[1734380865982,0.103,4060.5,4060.1,0.02462613]
[1734380866162,0.103,4060.5,4059.6,8.7299964]
[1734380866362,0.18370831,4060.4,4059.6,8.7299964]
[1734380866613,0.103,4060.5,4059.6,8.7299964]
[1734380867073,0.18371098,4060.4,4059.6,8.7299964]
[1734380867273,0.103,4060.5,4059.6,8.7299964]
[1734380867604,0.1836859,4060.4,4059.6,8.7299964]
[1734380867780,0.1836859,4060.3,4059.6,8.7299964]
[1734380867968,0.103,4060.5,4059.6,8.7299964]
[1734380868164,0.12175288,4060.7,4059.6,8.7299964]
[1734380868165,0.103,4060.3,4059.6,8.7299964]
[1734380870070,0.103,4060.3,4059.7,0.37016676]
[1734380870962,0.103,4060.3,4059.8,0.35747954]
[1734380871385,0.12175288,4060.7,4059.8,0.35747954]
[1734380871386,0.103,4060.6,4059.9,0.37016676]
[1734380873708,0.103,4060.6,4059.5,0.37016676]
[1734380874001,0.103,4060.6,4059.5,9.10016316]
[1734380874207,0.103,4060.6,4059.6,1.39077158]
[1734380874409,0.103,4060.6,4059.6,1.76093834]